fUST/lending_fUST_20240628
["ID","MTS","AMOUNT","RATE_DAILY","PERIOD"]
[330503227,1719522651129,-500.0,0.00044383,120]
[330503228,1719522651139,-500.0,0.00044383,120]
[330503229,1719522651149,-500.0,0.00044383,120]
[330503230,1719522651158,-587.89,0.00044383,120]
[330503231,1719522651167,-500.0,0.00044383,120]
[330503232,1719522651177,-500.0,0.00044383,120]
[330503233,1719522651186,-500.0,0.00044383,120]
[330503234,1719522651195,-754.47,0.00044383,120]
[330503235,1719522651205,-500.0,0.00044383,120]
[330503236,1719522651214,-500.0,0.00044383,120]
[330503237,1719522651223,-500.0,0.00044383,120]
[330503238,1719522651232,-500.0,0.00044383,120]
[330503239,1719522651242,-959.55,0.00044383,120]
[330503240,1719522651252,-500.0,0.00044383,120]
[330503241,1719522651261,-500.0,0.00044383,120]
[330503242,1719522651271,-503.10302727,0.00044383,120]
[330503243,1719522651281,-8802.76,0.00044383,120]
[330503244,1719522651290,-500.0,0.00044383,120]
[330503245,1719522651299,-508.77833824,0.00044383,7]
[330503246,1719522651309,-500.0,0.00044383,120]
[330503247,1719522651319,-500.0,0.00044383,120]
[330503248,1719522651329,-728.27,0.00044383,120]
[330503249,1719522651339,-1783.03,0.00044383,120]
[330503250,1719522651348,-910.62,0.00044383,120]
[330503251,1719522651359,-597.31,0.00044383,120]
[330503252,1719522651368,-500.0,0.00044383,2]
[330503253,1719522651378,-500.0,0.00044383,120]
[330503254,1719522651388,-519.79,0.00044383,120]
[330503255,1719522651397,-500.0,0.00044383,120]
[330503256,1719522651406,-500.0,0.00044383,120]
[330503257,1719522651415,-500.0,0.00044383,120]
[330503258,1719522651425,-500.0,0.00044383,120]
[330503259,1719522651435,-542.16,0.00044383,120]
[330503260,1719522651444,-500.0,0.00044383,120]
[330503261,1719522651455,-1034.48,0.00044383,120]
[330503262,1719522651467,-500.0,0.00044383,120]
[330503263,1719522651476,-500.0,0.00044383,120]
[330503264,1719522651486,-784.65,0.00044383,120]
[330503265,1719522651497,-500.0,0.00044383,120]
[330503266,1719522651506,-339.16166099,0.00044383,120]
[330503267,1719522651516,-500.0,0.00044383,30]
[330503268,1719522651526,-682.71,0.00044383,120]
[330503269,1719522651536,-500.0,0.00044383,120]
[330503270,1719522651545,-979.63,0.00044383,120]
[330503271,1719522651555,-500.0,0.00044383,120]
[330503272,1719522651565,-253.12742562,0.00044383,120]
[330503273,1719522651575,-921.52,0.00044383,120]
[330503274,1719522651584,-500.0,0.00044383,120]
[330503275,1719522651593,-500.0,0.00044383,120]
[330503276,1719522651603,-500.0,0.00044383,120]
[330503277,1719522651613,-522.18887224,0.00044383,120]
[330503278,1719522651623,-621.26,0.00044383,120]
[330503279,1719522651633,-500.0,0.00044383,120]
[330503280,1719522651642,-500.0,0.00044383,120]
[330503281,1719522651652,-500.0,0.00044383,120]
[330503282,1719522651661,-533.92008292,0.00044383,120]
[330503283,1719522651671,-508.23751018,0.00044383,120]
[330503284,1719522651680,-505.44824371,0.00044383,120]
[330503285,1719522651690,-500.0,0.00044383,120]
[330503286,1719522651699,-500.0,0.00044383,120]
[330503287,1719522651709,-500.0,0.00044383,120]
[330503288,1719522651718,-500.0,0.00044383,120]
[330503289,1719522651727,-500.0,0.00044383,120]
[330503290,1719522651736,-1564.95,0.00044383,120]
[330503291,1719522651746,-650.22,0.00044383,120]
[330503292,1719522651755,-500.0,0.00044383,120]
[330503293,1719522651765,-500.0,0.00044383,120]
[330503294,1719522651774,-500.0,0.00044383,120]
[330503295,1719522651784,-594.91784785,0.00044383,120]
[330503296,1719522651794,-500.0,0.00044383,120]
[330503297,1719522651803,-703.41,0.00044383,120]
[330503298,1719522651813,-500.0,0.00044383,120]
[330503299,1719522651823,-500.0,0.00044383,120]
[330503300,1719522651833,-500.0,0.00044383,120]
[330503301,1719522651844,-1349.12,0.00044383,120]
[330503302,1719522651854,-500.0,0.00044383,120]
[330503303,1719522651863,-500.0,0.00044383,120]
[330503304,1719522651873,-500.0,0.00044383,120]
[330503305,1719522651883,-500.0,0.00044383,120]
[330503306,1719522651893,-2353.44,0.00044383,120]
[330503307,1719522651902,-500.0,0.00044383,120]
[330503308,1719522651912,-500.0,0.00044383,120]
[330503309,1719522651922,-500.0,0.00044383,120]
[330503310,1719522651931,-500.0,0.00044383,120]
[330503311,1719522651940,-792.6,0.00044383,120]
[330503312,1719522651950,-500.0,0.00044383,2]
[330503313,1719522651960,-500.0,0.00044383,120]
[330503314,1719522651969,-533.29,0.00044383,120]
[330503315,1719522651979,-500.0,0.00044383,120]
[330503316,1719522651989,-500.0,0.00044383,20]
[330503317,1719522651999,-542.66,0.00044383,120]
[330503318,1719522652009,-500.0,0.00044383,120]
[330503319,1719522652019,-500.0,0.00044383,120]
[330503320,1719522652029,-976.17,0.00044383,120]
[330503321,1719522652041,-500.0,0.00044383,120]
[330503322,1719522652051,-500.0,0.00044383,120]
[330503323,1719522652061,-500.0,0.00044383,120]
[330503324,1719522652071,-500.0,0.00044383,120]
[330503325,1719522652081,-500.0,0.00044383,120]
[330503326,1719522652091,-500.7,0.00044383,120]
[330503327,1719522652102,-500.0,0.00044383,120]
[330503328,1719522652110,-500.0,0.00044383,120]
[330503329,1719522652119,-500.0,0.00044383,120]
[330503330,1719522652129,-583.39,0.00044383,120]
[330503331,1719522652139,-500.0,0.00044383,120]
[330503332,1719522652150,-544.71867907,0.00044383,120]
[330503333,1719522652160,-500.0,0.00044383,2]
[330503334,1719522652170,-689.29,0.00044383,2]
[330503335,1719522652180,-250.0,0.00044383,120]
[330503336,1719522652190,-836.25,0.00044383,120]
[330503337,1719522652200,-500.0,0.00044383,120]
[330503338,1719522652209,-500.0,0.00044383,120]
[330503339,1719522652219,-154.07242622,0.00044383,120]
[330503340,1719522652228,-500.0,0.00044383,120]
[330503341,1719522652238,-500.0,0.00044383,120]
[330503342,1719522652247,-500.0,0.00044383,120]
[330503343,1719522652256,-500.0,0.00044383,120]
[330503344,1719522652267,-897.71,0.00044383,120]
[330503345,1719522652277,-679.83,0.00044383,120]
[330503346,1719522652286,-500.0,0.00044383,120]
[330503347,1719522652296,-553.92,0.00044383,120]
[330503348,1719522652306,-2833.13,0.00044383,120]
[330503349,1719522652315,-500.0,0.00044383,120]
[330503350,1719522652325,-342.86790358,0.00044383,120]
[330503351,1719522652350,-543.51209642,0.00044383,120]
[330503352,1719522652360,-500.0,0.00044383,120]
[330503353,1719522652370,-500.0,0.00044383,120]
[330503354,1719522652381,-500.0,0.00044383,120]
[330503355,1719522652392,-500.0,0.00044383,120]
[330503356,1719522652402,-500.0,0.00044383,120]
[330503357,1719522652412,-500.0,0.00044383,120]
[330503358,1719522652422,-500.0,0.00044383,120]
[330503359,1719522652432,-500.0,0.00044383,120]
[330503360,1719522652442,-467.8986924,0.00044383,120]
[330503361,1719522652455,-1094.48,0.00044383,120]
[330503362,1719522652465,-500.0,0.00044383,120]
[330503363,1719522652476,-1175.66,0.00044383,120]
[330503364,1719522652486,-1079.36,0.00044383,120]
[330503365,1719522652497,-500.0,0.00044383,120]
[330503366,1719522652507,-521.79,0.00044383,120]
[330503367,1719522652517,-500.0,0.00044383,120]
[330503368,1719522652527,-556.7,0.00044383,120]
[330503369,1719522652540,-627.44,0.00044383,120]
[330503370,1719522652551,-500.0,0.00044383,120]
[330503371,1719522652561,-502.07752359,0.00044383,120]
[330503372,1719522652571,-500.0,0.00044383,120]
[330503373,1719522652581,-500.0,0.00044383,120]
[330503374,1719522652591,-500.0,0.00044383,120]
[330503375,1719522652601,-511.82,0.00044383,120]
[330503376,1719522652611,-431.43844543,0.00044383,120]
[330503377,1719522652621,-500.0,0.00044383,120]
[330503378,1719522652631,-701.91,0.00044383,120]
[330503379,1719522652641,-786.61,0.00044383,120]
[330503380,1719522652651,-500.0,0.00044383,120]
[330503381,1719522652661,-583.8,0.00044383,120]
[330503382,1719522652671,-520.78201519,0.00044383,120]
[330503383,1719522652680,-500.0,0.00044383,120]
[330503384,1719522652690,-500.0,0.00044383,120]
[330503385,1719522652700,-1923.59,0.00044383,120]
[330503386,1719522652709,-3101.44,0.00044383,120]
[330503387,1719522652719,-500.0,0.00044383,25]
[330503388,1719522652729,-660.17,0.00044383,120]
[330503389,1719522652739,-745.66,0.00044383,120]
[330503390,1719522652749,-269.68128176,0.00044383,120]
[330503391,1719522652759,-401.41659022,0.00044383,120]
[330503397,1719523119197,229.36407893,0.00014758,2]
[330503398,1719523478702,208.69572916,0.00016255,2]
[330503399,1719523481125,161.20318611,0.00016255,2]
[330503400,1719523545145,-300.0,0.00017887,2]
[330503401,1719523545166,-300.0,0.00017887,2]
[330503402,1719523545186,-2650.24548105,0.00017888,2]
[330503404,1719523627107,-299.79665734,0.00018899,2]
[330503405,1719523627131,-154.82195475,0.00019703,2]
[330503406,1719523627151,-314.42948756,0.00019703,2]
[330503407,1719523627171,-161.49972,0.00021096,2]
[330503408,1719523627190,-300.0,0.00021681,2]
[330503409,1719523627209,-65.28350436,0.00021682,2]
[330503410,1719523631156,-767.2261449,0.00021682,2]
[330503411,1719523648128,-1768.88162969,0.00021682,2]
[330503412,1719523746441,-300.0,0.00018898,2]
[330503413,1719523746463,-300.0,0.00018898,2]
[330503414,1719523746484,-11120.42606657,0.00018899,2]
[330503415,1719523746505,-287.0,0.00020601,2]
[330503416,1719523746530,-420.0,0.00020788,2]
[330503417,1719523746554,-524.0,0.00022867,2]
[330503418,1719523746575,-228.10280662,0.00025902,2]
[330503419,1719523746595,-154.82195475,0.00026281,2]
[330503420,1719523746615,-6938.51492069,0.00026281,2]
[330503421,1719523748180,-504.59663588,0.00026281,2]
[330503422,1719523763098,-2515.80024244,0.00025869,2]
[330503423,1719523763118,-189.0849716,0.00025902,2]
[330503424,1719523763138,-191.09191803,0.00025902,2]
[330503425,1719523763158,-293.10784911,0.00025902,2]
[330503426,1719523763178,-1269.09771421,0.00026281,2]
[330503427,1719523763203,-159.7764587,0.00026281,2]
[330503428,1719523763228,565.7116958,0.00026281,2]
[330503429,1719523773102,-250.0,0.00028779,2]
[330503430,1719523773122,-131.9115706,0.00029903,2]
[330503447,1719523832022,-233.8563631,0.00029252,2]
[330503448,1719523832032,-701.2837482,0.00031162,2]
[330503449,1719523832041,-153.0,0.00031189,2]
[330503451,1719523832051,-2704.60826294,0.00031322,2]
[330503453,1719523832063,-295.39173706,0.00031322,2]
[330503454,1719523832072,-20.31826294,0.00031559,2]
[330503455,1719523832084,-1332.28760033,0.00031559,2]
[330503456,1719523832096,-1390.0,0.00031559,2]
[330503476,1719523838006,-1185.11216404,0.00031559,2]
[330503477,1719523838018,-594.14731264,0.00031559,2]
[330503478,1719523838029,-398.47360725,0.00031559,2]
[330503479,1719523838040,-4769.58,0.00031559,2]
[330503491,1719523841371,-861.075,0.00031559,2]
[330503501,1719523841456,-512.99,0.00031559,2]
[330503584,1719523843174,-269.350406,0.00031559,2]
[330503587,1719523843273,-13566.6656468,0.00031559,2]
[330503588,1719523843283,-304.0616908,0.00031641,2]
[330503590,1719523843293,-154.82195475,0.00031855,4]
[330503591,1719523843302,-161.49972,0.00033973,2]
[330503592,1719523843312,-8380.70566161,0.00034592,4]
[330503674,1719523846282,-1222.06638157,0.00034592,4]
[330503675,1719523846296,-889.28405543,0.000349,2]
[330503676,1719523846308,-2709.72121891,0.00035,4]
[330503677,1719523846318,-889.28405538,0.00037571,2]
[330503678,1719523846334,-648.2301218,0.00037899,4]
[330503679,1719523846349,-772.0,0.00038598,2]
[330503680,1719523846361,-257.6749072,0.00039177,4]
[330503681,1719523846374,-267.99418964,0.00039177,4]
[330503682,1719523846387,-500.0,0.00039972,30]
[330503683,1719523846398,-279.97593205,0.00040229,4]
[330503684,1719523846410,-889.28405538,0.00040242,28]
[330503685,1719523846424,-175.97073239,0.00040999,4]
[330503686,1719523846436,-889.28405538,0.00042913,28]
[330503687,1719523846449,-1967.45654607,0.00042999,30]
[330503688,1719523846461,-154.82195475,0.00043287,4]
[330503689,1719523846473,-14598.72711186,0.00043625,2]
[330503690,1719523846485,-2263.02,0.00043725,3]
[330503691,1719523846498,-1885.85,0.00043725,3]
[330503692,1719523846510,-7552.4825737,0.00043725,5]
[330503693,1719523846522,-9597.81274774,0.00043735,31]
[330503694,1719523846534,-68377.18828222,0.00043735,5]
[330503695,1719523846546,-2000.0,0.00043735,2]
[330503696,1719523846558,-150.0,0.00043775,2]
[330503697,1719523846571,-500.0,0.00043824,30]
[330503698,1719523846583,-1678.18,0.00043824,120]
[330503699,1719523846599,-37762.4128685,0.00043825,5]
[330503700,1719523846612,-500.0,0.00043835,120]
[330503701,1719523846624,-502.05444183,0.00043835,120]
[330503702,1719523846637,-500.0,0.00043835,120]
[330503703,1719523846649,-500.0,0.00043835,120]
[330503704,1719523846662,-500.0,0.00043835,120]
[330503705,1719523846675,-1163.03,0.00043835,120]
[330503706,1719523846688,-500.0,0.00043835,120]
[330503707,1719523846700,-1288.42,0.00043835,120]
[330503708,1719523846713,-500.0,0.00043835,120]
[330503709,1719523846726,-500.0,0.00043835,120]
[330503710,1719523846738,-500.0,0.00043835,120]
[330503711,1719523846751,-500.0,0.00043835,120]
[330503712,1719523846764,-311.95573246,0.00043835,120]
[330503713,1719523846777,-500.0,0.00043835,120]
[330503714,1719523846790,-500.0,0.00043835,120]
[330503715,1719523846803,-646.65,0.00043835,120]
[330503716,1719523846815,-500.0,0.00043835,120]
[330503717,1719523846830,-500.0,0.00043835,120]
[330503718,1719523846842,-160.92640087,0.00043835,120]
[330503719,1719523846855,-500.0,0.00043835,120]
[330503720,1719523846869,-500.0,0.00043835,120]
[330503721,1719523846882,-195.43303312,0.00043835,120]
[330503722,1719523846896,-500.0,0.00043835,120]
[330503723,1719523846909,-500.0,0.00043835,120]
[330503724,1719523846922,-500.0,0.00043835,120]
[330503725,1719523846935,-500.0,0.00043835,120]
[330503726,1719523846948,-500.0,0.00043835,120]
[330503727,1719523846961,-500.0,0.00043835,120]
[330503728,1719523846973,-500.0,0.00043835,120]
[330503729,1719523846985,-983.02,0.00043835,120]
[330503730,1719523846998,-500.0,0.00043835,120]
[330503731,1719523847011,-500.0,0.00043835,120]
[330503732,1719523847024,-500.0,0.00043835,120]
[330503733,1719523847037,-500.0,0.00043835,120]
[330503734,1719523847048,-616.87,0.00043835,120]
[330503735,1719523847061,-500.0,0.00043835,120]
[330503736,1719523847073,-500.0,0.00043835,120]
[330503737,1719523847086,-500.0,0.00043835,120]
[330503738,1719523847096,-500.0,0.00043835,120]
[330503739,1719523847106,-500.0,0.00043835,120]
[330503740,1719523847116,-516.06323584,0.00043835,120]
[330503741,1719523847125,-500.0,0.00043835,120]
[330503742,1719523847137,-500.0,0.00043835,120]
[330503743,1719523847146,-500.0,0.00043835,120]
[330503744,1719523847156,-500.0,0.00043835,120]
[330503745,1719523847336,-500.0,0.00043835,120]
[330503746,1719523847361,-500.0,0.00043835,120]
[330503747,1719523847374,-323.41228725,0.00043835,20]
[330503748,1719523847389,-176.58771275,0.00043835,20]
[330503749,1719523847398,-173.94784888,0.00043835,120]
[330503750,1719523847411,-455.84244738,0.00043835,120]
[330503751,1719523847420,-500.0,0.00043835,120]
[330503752,1719523847429,-500.0,0.00043835,120]
[330503753,1719523847438,-500.0,0.00043835,120]
[330503754,1719523847448,-500.0,0.00043835,120]
[330503755,1719523847457,-500.0,0.00043835,120]
[330503756,1719523847466,-500.0,0.00043835,120]
[330503757,1719523847475,-500.0,0.00043835,120]
[330503758,1719523847484,-500.0,0.00043835,120]
[330503759,1719523847493,-500.0,0.00043835,120]
[330503760,1719523847502,-683.87,0.00043835,2]
[330503761,1719523847511,-500.0,0.00043835,120]
[330503762,1719523847520,-250.0,0.00043835,120]
[330503763,1719523847529,-500.0,0.00043835,120]
[330503764,1719523847538,-500.0,0.00043835,120]
[330503765,1719523847547,-568.09908051,0.00043835,120]
[330503766,1719523847555,-500.0,0.00043835,120]
[330503767,1719523847564,-500.0,0.00043835,120]
[330503768,1719523847574,-500.0,0.00043835,120]
[330503769,1719523847583,-500.0,0.00043835,120]
[330503770,1719523847592,-823.45,0.00043835,120]
[330503771,1719523847601,-500.0,0.00043835,120]
[330503772,1719523847611,-520.0013367,0.00043835,120]
[330503773,1719523847619,-500.0,0.00043835,120]
[330503774,1719523847629,-500.0,0.00043835,120]
[330503775,1719523847638,-500.0,0.00043835,120]
[330503776,1719523847647,-500.0,0.00043835,120]
[330503777,1719523847656,-500.0,0.00043835,120]
[330503778,1719523847665,-511.07,0.00043835,120]
[330503779,1719523847674,-500.0,0.00043835,120]
[330503780,1719523847684,-500.0,0.00043835,120]
[330503781,1719523847693,-500.0,0.00043835,120]
[330503782,1719523847702,-500.0,0.00043835,120]
[330503783,1719523847711,-500.0,0.00043835,120]
[330503784,1719523847721,-500.0,0.00043835,120]
[330503785,1719523847730,-500.0,0.00043835,120]
[330503786,1719523847739,-500.0,0.00043835,120]
[330503787,1719523847749,-312.5785119,0.00043835,120]
[330503788,1719523941506,151.94122417,0.00024299,2]
[330503789,1719523942007,151.94122417,0.00025236,2]
[330503790,1719523942641,151.94122417,0.00025747,2]
[330503791,1719523943277,151.94122417,0.00025854,2]
[330503792,1719523943759,151.94122417,0.00026871,2]
[330503793,1719523944769,151.9593019,0.00025289,2]
[330503794,1719523945296,151.9593019,0.0002578,2]
[330503795,1719523945834,151.9593019,0.00025793,2]
[330503796,1719523946301,151.9593019,0.00026391,2]
[330503797,1719523946802,151.9593019,0.00026554,2]
[330503805,1719524757158,-304.970342,0.00019719,2]
[330503806,1719524757180,-248.43103099,0.00019988,2]
[330503810,1719524822022,657.2939459,0.00016255,2]
[330503811,1719524822050,657.2939459,0.00016255,2]
[330503812,1719524822079,657.2939459,0.00016255,2]
[330503813,1719524822108,657.2939459,0.00016255,2]
[330503814,1719524822138,657.2939459,0.00016255,2]
[330503815,1719524822166,197.3402705,0.00016255,2]
[330503816,1719524825121,-2378.85499473,0.00016255,2]
[330503817,1719524826107,-1607.43110722,0.00016255,2]
[330503818,1719524836113,-1797.21452559,0.00016255,2]
[330503820,1719524850102,-13111.40764097,0.00016255,2]
[330503822,1719524945114,-300.0,0.00016254,2]
[330503823,1719524945135,-300.0,0.00016254,2]
[330503824,1719524945155,-19817.53605677,0.00016255,2]
[330503825,1719524945175,-4692.0915916,0.00016255,2]
[330503826,1719524945194,-770.09009109,0.00016255,2]
[330503827,1719524945217,-791.9747798,0.00018305,2]
[330503828,1719524945240,-8232.57014252,0.00018416,2]
[330503829,1719524952693,-16667.42985748,0.00018416,2]
[330503830,1719524952714,-3000.0,0.00018418,2]
[330503831,1719524952735,-250.0,0.00018832,2]
[330503832,1719524952755,-11123.32192726,0.00018899,2]
[330503833,1719524952776,-12247.492443,0.00019149,2]
[330503834,1719524952796,-500.0,0.00019178,2]
[330503835,1719524952816,-490.65106447,0.00019178,2]
[330503836,1719524952835,-155.3707062,0.00019703,2]
[330503837,1719524952856,-8988.44977914,0.00019988,2]
[330503838,1719524952880,-4798.90637386,0.00019998,7]
[330503839,1719524952900,-12633.6863864,0.00019998,7]
[330503840,1719524952920,-267585.36917376,0.00019998,2]
[330503841,1719524952943,-8647.56096379,0.00020996,2]
[330503842,1719524952965,-161.49972,0.00021096,2]
[330503843,1719524952986,-842.54666328,0.00023453,2]
[330503844,1719524953008,-8284.84668069,0.00023966,2]
[330503845,1719524955109,-1316.94545097,0.00023966,2]
[330503846,1719524955131,-152.05794541,0.00024203,2]
[330503847,1719524955151,-150.0,0.00024425,2]
[330503848,1719524955172,-152.05794541,0.00024616,2]
[330503849,1719524955192,-151.95930191,0.00024686,2]
[330503850,1719524955213,-869.05974246,0.00024885,2]
[330503851,1719524955234,-250.0,0.00024973,2]
[330503852,1719524955255,-152.0820862,0.00025278,2]
[330503853,1719524955284,-159.50123805,0.00025374,2]
[330503854,1719524955307,-1498.07496319,0.00025491,2]
[330503855,1719524955330,-6972.7816651,0.00025501,2]
[330503856,1719524955352,-350.0,0.00025521,2]
[330503857,1719524955374,-152.05794541,0.00025729,2]
[330503858,1719524955395,-156.22235763,0.00025931,2]
[330503859,1719524955415,-163.751651,0.00025939,2]
[330503860,1719524955435,-450.0,0.00026069,2]
[330503861,1719524955455,-151.95930191,0.00026456,2]
[330503862,1719524955476,-151.95930191,0.00026595,2]
[330503863,1719524955497,-676.2674,0.00026617,2]
[330503864,1719524955518,-151.95930191,0.00026787,2]
[330503865,1719524955539,-152.05794541,0.00026824,2]
[330503866,1719524955560,-152.0820862,0.00026868,2]
[330503867,1719524955581,-152.05794541,0.00026975,2]
[330503868,1719524957119,-152.05794541,0.00027597,2]
[330503869,1719524957140,-152.0820862,0.00027765,2]
[330503870,1719524957160,-151.95930191,0.00027963,2]
[330503871,1719524957179,-1589.190272,0.0002799,2]
[330503872,1719525005077,600.0,0.0002205,3]
[330503873,1719525006725,865.13232881,0.0002205,3]
[330503874,1719525028466,229.34773259,0.00027399,2]
[330503972,1719525038018,1693.16634661,0.0002205,2]
[330503973,1719525038041,153.0,0.0002205,2]
[330503974,1719525038066,177.86909029,0.0002205,2]
[330503975,1719525038087,2668.0561547,0.0002205,2]
[330503986,1719525038391,-1083.66412041,0.00027399,2]
[330503987,1719525038400,-48.95796095,0.0002799,2]
[330503988,1719525038411,-154.82195475,0.00027999,2]
[330503989,1719525038421,-152.0820862,0.00028566,2]
[330503990,1719525038431,-151.95930191,0.00028781,2]
[330503991,1719525038440,-151.95930191,0.00029342,2]
[330503992,1719525038450,-304.970342,0.00029578,2]
[330503993,1719525038459,-152.05794541,0.00029659,2]
[330503994,1719525038468,-516.72213415,0.00029813,2]
[330503995,1719525038477,-359.7349756,0.00029823,2]
[330503996,1719525038487,-1117.87472833,0.00029861,2]
[330503997,1719525038496,-152.0820862,0.00029896,2]
[330503998,1719525038506,-933.08575257,0.00029903,2]
[330503999,1719525038515,-154.83742071,0.00029904,2]
[330504000,1719525038525,-151.95930191,0.00030011,7]
[330504001,1719525038536,-151.95930191,0.00030126,7]
[330504002,1719525038545,-152.05794541,0.00030302,7]
[330504003,1719525038557,-152.05794541,0.00030855,7]
[330504004,1719525038567,-152.05794541,0.00031088,7]
[330504005,1719525038576,-151.95930191,0.0003125,7]
[330504006,1719525038586,-153.0,0.00031323,2]
[330504007,1719525038596,-153.0,0.00031323,2]
[330504008,1719525038606,-153.0,0.00031323,2]
[330504009,1719525038616,-153.0,0.00031323,2]
[330504010,1719525038626,-153.0,0.00031323,2]
[330504011,1719525038636,-153.0,0.00031323,2]
[330504012,1719525038646,-153.0,0.00031323,2]
[330504013,1719525038655,-153.0,0.0003133,2]
[330504014,1719525038665,-153.0,0.0003133,2]
[330504015,1719525038675,-153.0,0.0003133,2]
[330504016,1719525038684,-153.0,0.0003133,2]
[330504017,1719525038694,-153.0,0.0003133,2]
[330504018,1719525038704,-151.95930191,0.0003218,7]
[330504019,1719525038714,-153.70413313,0.00032521,7]
[330504020,1719525038723,-151.95930191,0.00032535,7]
[330504021,1719525038733,-151.95930191,0.0003289,7]
[330504022,1719525038743,-152.05794541,0.00032916,7]
[330504023,1719525038753,-151.95930191,0.00033079,7]
[330504024,1719525038763,-151.95930191,0.00033357,7]
[330504025,1719525038773,-444.64202769,0.00033827,2]
[330504026,1719525038783,-5724.9497448,0.00033842,4]
[330504027,1719525038794,-18716.65868595,0.00033842,2]
[330504028,1719525038804,-151.95930191,0.0003398,7]
[330504029,1719525038816,-7101.31876633,0.0003455,4]
[330504030,1719525038826,-1098.35636042,0.00034588,4]
[330504031,1719525038836,-5273.74735403,0.00034634,4]
[330504032,1719525038846,-152.481495,0.00034995,2]
[330504033,1719525038856,-2709.72121891,0.00035,4]
[330504034,1719525038866,-153.70413314,0.00035091,7]
[330504035,1719525038876,-3074.84022806,0.00035259,4]
[330504036,1719525038886,-152.05794541,0.00035297,7]
[330504037,1719525038896,-1827.78631174,0.00035615,4]
[330504038,1719525038906,-151.95930191,0.00035863,7]
[330504039,1719525038916,-152.05794541,0.00036036,7]
[330504040,1719525038925,-154.82195475,0.00036245,4]
[330504041,1719525038935,-253.75202765,0.00036293,2]
[330504042,1719525038945,-1498.07496319,0.00036393,4]
[330504043,1719525038955,-152.0820862,0.00036403,7]
[330504044,1719525038965,-1482.40812518,0.00036732,4]
[330504045,1719525038975,-156.22235763,0.00037036,7]
[330504046,1719525038985,-152.05794541,0.00037205,7]
[330504047,1719525038995,-152.05794541,0.00037345,7]
[330504048,1719525039004,-972.815005,0.00037587,4]
[330504049,1719525039014,-909.25491549,0.00037587,30]
[330504050,1719525039025,-161.49972,0.00037652,2]
[330504051,1719525039035,-151.95930191,0.00038131,7]
[330504052,1719525039045,-152.05794548,0.00038192,7]
[330504053,1719525039056,-152.08208625,0.0003823,7]
[330504054,1719525039067,-156.22235763,0.00038261,7]
[330504055,1719525039077,-490.10020905,0.00038264,2]
[330504056,1719525039088,-196.15846741,0.00038999,4]
[330504057,1719525039099,-174.94766048,0.00039167,4]
[330504058,1719525039110,-152.08878095,0.00039256,7]
[330504059,1719525039120,-195.45518522,0.00039393,4]
[330504060,1719525039130,-402.47506882,0.00039393,4]
[330504061,1719525039141,-220.08911463,0.00039393,4]
[330504062,1719525039151,-159.50123805,0.00039515,7]
[330504063,1719525039162,-151.95930191,0.00039644,7]
[330504064,1719525039173,-151.95930194,0.00039825,7]
[330504065,1719525039183,-533.21,0.00039972,30]
[330504066,1719525039193,-1793.48,0.0003999,3]
[330504067,1719525039203,-1494.57,0.0003999,3]
[330504068,1719525039214,-154.83742071,0.00039994,4]
[330504069,1719525039224,-165.00553502,0.00039994,4]
[330504070,1719525039234,-239.44235135,0.00039994,4]
[330504071,1719525039245,-25344.23568059,0.0004,120]
[330504072,1719525039255,-1608.26,0.00041095,120]
[330504073,1719525039266,-1608.26,0.00041369,120]
[330504074,1719525039276,-1608.26,0.00041643,120]